bitfinex/quotes_BTCUSD_20241020
["timestamp","ask_amount","ask_price","bid_price","bid_amount"]
[1729456056147,0.0015354,68600.0,68599.0,1.97737352]
[1729456056371,0.0015354,68600.0,68599.0,1.84647185]
[1729456056590,0.0015354,68600.0,68599.0,1.97737352]
[1729456057034,0.0015354,68600.0,68599.0,1.84647185]
[1729456058357,0.0015354,68600.0,68599.0,1.97737784]
[1729456060551,0.0015354,68600.0,68599.0,1.84647185]
[1729456061026,0.0015354,68600.0,68599.0,1.97737784]
[1729456062103,0.0015354,68600.0,68599.0,1.97738186]
[1729456062958,0.0015354,68600.0,68599.0,1.84647185]
[1729456063159,0.0015354,68600.0,68599.0,1.82842271]
[1729456064240,0.0015354,68600.0,68599.0,1.81751201]
[1729456064672,0.0015354,68600.0,68599.0,1.82842484]
[1729456066982,0.0015354,68600.0,68599.0,1.69751483]
[1729456067191,0.0015354,68600.0,68599.0,1.82845674]
[1729456067627,0.0015354,68600.0,68599.0,1.97741589]
[1729456067832,0.0015354,68600.0,68599.0,1.97741587]
[1729456071962,0.0015354,68600.0,68599.0,1.97741546]
[1729456072380,0.0015354,68600.0,68599.0,1.98629227]
[1729456074748,0.0015354,68600.0,68599.0,1.9753794]
[1729456074954,0.0015354,68600.0,68599.0,1.98629211]
[1729456075135,0.0015354,68600.0,68599.0,1.97537939]
[1729456075395,0.0015354,68600.0,68599.0,1.98629217]
[1729456076039,0.0015354,68600.0,68599.0,1.98629227]
[1729456076954,0.0015354,68600.0,68599.0,1.98629493]
[1729456078434,0.0015354,68600.0,68599.0,1.98712293]
[1729456080402,0.0015354,68600.0,68599.0,1.85617877]
[1729456081054,0.0015354,68600.0,68599.0,1.84526599]
[1729456081261,0.0015354,68600.0,68599.0,1.85617883]
[1729456082296,0.0015354,68600.0,68599.0,1.98712712]
[1729456083721,0.0015354,68600.0,68599.0,1.85617883]
[1729456084273,0.0015354,68600.0,68599.0,1.98712712]
[1729456084485,0.0015354,68600.0,68599.0,1.98712138]
[1729456085131,0.0015354,68600.0,68599.0,1.83816223]
[1729456085357,0.0015354,68600.0,68599.0,1.8381164]
[1729456088385,0.0015354,68600.0,68599.0,1.83811382]
[1729456090335,0.0015354,68600.0,68599.0,1.70721136]
[1729456090572,0.0015354,68600.0,68599.0,1.83811382]
[1729456091250,0.0015354,68600.0,68599.0,1.70721136]
[1729456091667,0.0015354,68600.0,68599.0,1.83811923]
[1729456091927,0.0015354,68600.0,68599.0,1.70721197]
[1729456092153,0.0015354,68600.0,68599.0,1.85992908]
[1729456092361,0.0015354,68600.0,68599.0,1.87798741]
[1729456092788,0.0015354,68600.0,68599.0,2.00888823]
[1729456094553,0.0015354,68600.0,68599.0,1.87798741]
[1729456094776,0.0015354,68600.0,68599.0,2.00888823]
[1729456094983,0.0015354,68600.0,68599.0,2.000015]
[1729456095190,0.0015354,68600.0,68599.0,2.0197973]
[1729456095396,0.0015354,68600.0,68599.0,2.00888856]
[1729456096480,0.0015354,68600.0,68599.0,1.87798774]
[1729456096694,0.0015354,68600.0,68599.0,2.00888856]
[1729456097166,0.0015354,68600.0,68599.0,2.00888744]
[1729456097381,0.0015354,68600.0,68599.0,1.92343416]
[1729456097799,0.0015354,68600.0,68599.0,2.00888456]
[1729456098009,0.0015354,68600.0,68599.0,1.87798774]
[1729456098239,0.0015354,68600.0,68599.0,2.00888247]
[1729456098526,0.0015354,68600.0,68599.0,1.7744766]
[1729456098737,0.0015354,68600.0,68599.0,1.72902386]
[1729456100248,0.0015354,68600.0,68599.0,1.72015149]
[1729456100456,0.0015354,68600.0,68599.0,1.71811792]
[1729456100673,0.0015354,68600.0,68599.0,1.85994251]
[1729456100902,0.0015354,68600.0,68599.0,1.72902991]
[1729456101096,0.0015354,68600.0,68599.0,1.77448327]
[1729456101350,0.0015354,68600.0,68599.0,1.72902991]
[1729456101566,0.0015354,68600.0,68599.0,1.72015632]
[1729456102001,0.0015354,68600.0,68599.0,1.91456623]
[1729456102876,0.0015354,68600.0,68599.0,2.01616623]
[1729456105788,0.0015354,68600.0,68599.0,1.98343991]
[1729456106035,0.0015354,68600.0,68599.0,2.01614957]
[1729456113012,0.001652,68611.0,68599.0,2.01614957]
[1729456113013,0.21846622,68624.0,68621.0,0.154555]
[1729456113261,0.21846622,68624.0,68621.0,0.008828]
[1729456113518,0.01109534,68622.0,68621.0,1.46253052]
[1729456113752,0.001652,68622.0,68621.0,1.61915878]
[1729456114240,0.002652,68622.0,68621.0,1.61915878]
[1729456115428,0.002652,68622.0,68621.0,1.87684285]
[1729456115660,0.002652,68622.0,68621.0,1.73111585]
[1729456115887,0.002652,68622.0,68621.0,1.87684285]
[1729456116124,0.003652,68622.0,68621.0,1.87684285]
[1729456116362,0.003652,68622.0,68621.0,1.8550652]
[1729456116852,0.003652,68622.0,68621.0,1.83326268]
[1729456117088,0.003652,68622.0,68621.0,1.76800013]
[1729456117783,0.003652,68622.0,68621.0,1.83319428]
[1729456118036,0.003652,68622.0,68621.0,1.76800013]
[1729456118268,0.003652,68622.0,68621.0,1.83317743]
[1729456118952,0.003652,68622.0,68621.0,1.78247614]
[1729456119180,0.003652,68622.0,68621.0,1.8476535]
[1729456119408,0.003652,68622.0,68621.0,1.76800013]
[1729456119638,0.003652,68622.0,68621.0,1.78247266]
[1729456119870,0.003652,68622.0,68621.0,1.82591405]
[1729456120108,0.003652,68622.0,68621.0,1.78247266]
[1729456120389,0.003652,68622.0,68621.0,1.81143277]
[1729456120630,0.003652,68622.0,68621.0,1.8258823]
[1729456121109,0.003652,68622.0,68621.0,2.09443635]
[1729456121348,0.003652,68622.0,68621.0,2.20495377]
[1729456121591,0.003652,68622.0,68621.0,2.09643635]
[1729456121811,0.003652,68622.0,68621.0,2.10525865]
[1729456122527,0.001652,68622.0,68621.0,2.12825865]
[1729456124102,0.001652,68622.0,68621.0,2.30997686]
[1729456124338,0.001652,68622.0,68621.0,2.17924001]
[1729456125684,0.001652,68622.0,68621.0,2.33006459]
[1729456125902,0.001652,68622.0,68621.0,2.20012166]
[1729456126114,0.001652,68622.0,68621.0,2.33006482]
[1729456126326,0.001652,68622.0,68621.0,2.33001622]
[1729456126543,0.001652,68622.0,68621.0,2.32801622]
[1729456126787,0.001652,68622.0,68621.0,2.1549693]
[1729456127216,0.001652,68622.0,68621.0,2.26321891]
[1729456128348,0.001652,68622.0,68621.0,2.1549693]
[1729456128562,0.001652,68622.0,68621.0,2.26319294]
[1729456129221,0.001652,68622.0,68621.0,2.1549693]
[1729456131419,0.001652,68622.0,68621.0,2.24150981]
[1729456132938,0.21846622,68631.0,68624.0,0.166549]
[1729456133163,0.21846622,68631.0,68624.0,1.8117935]
[1729456133843,0.21846622,68638.0,68624.0,1.8117935]
[1729456134058,0.21846622,68638.0,68624.0,1.8983166]
[1729456134269,0.21846622,68638.0,68624.0,1.8117935]
[1729456138336,0.21846622,68638.0,68624.0,1.77923045]
[1729456138590,0.21846622,68638.0,68624.0,1.93901919]
[1729456138805,0.21846622,68638.0,68624.0,1.9715152]
[1729456139030,0.21846622,68638.0,68624.0,1.98234841]
[1729456140803,0.21846622,68638.0,68624.0,1.96068923]
[1729456141467,0.31836622,68638.0,68624.0,1.96068923]
[1729456142604,0.0776,68631.0,68624.0,1.93768923]
[1729456142801,0.0776,68631.0,68624.0,1.92886693]
[1729456143071,0.0776,68631.0,68624.0,1.97012089]
[1729456143298,0.0776,68631.0,68624.0,1.97212089]
[1729456144226,0.0776,68631.0,68624.0,1.97012089]
[1729456144685,0.0776,68631.0,68624.0,1.97021065]
[1729456145121,0.0776,68631.0,68624.0,1.97221065]
[1729456145337,0.0776,68631.0,68624.0,1.92895669]
[1729456146513,0.0776,68631.0,68624.0,1.92695669]
[1729456146728,0.0776,68631.0,68624.0,1.97217427]
[1729456147387,0.0776,68631.0,68624.0,2.03704673]
[1729456148067,0.0776,68631.0,68630.0,0.164536]
[1729456148333,0.0776,68631.0,68630.0,1.66999672]
[1729456148585,0.0776,68631.0,68630.0,1.70261726]
[1729456149735,0.176,68631.0,68630.0,1.48324854]
[1729456149993,0.176,68631.0,68630.0,1.62895654]
[1729456152283,0.176,68631.0,68630.0,1.62898089]
[1729456155729,0.176,68631.0,68630.0,1.6289772]
[1729456156451,0.176,68631.0,68630.0,1.82133055]
[1729456156682,0.176,68631.0,68630.0,1.77793635]
[1729456156905,0.176,68631.0,68630.0,1.82133055]
[1729456157342,0.176,68631.0,68630.0,1.84302765]
[1729456158238,0.176,68631.0,68630.0,1.86472475]
[1729456158719,0.0776,68631.0,68630.0,1.86472475]
[1729456158930,0.1022239,68636.0,68635.0,0.149526]
[1729456159159,0.1022239,68636.0,68635.0,1.68762792]
[1729456159593,0.1773239,68636.0,68635.0,1.68762792]
[1729456159806,0.1773239,68636.0,68635.0,1.68762582]
[1729456160236,0.1773239,68636.0,68635.0,1.75282361]
[1729456160701,0.1773239,68636.0,68635.0,1.68762582]
[1729456160920,0.1773239,68636.0,68635.0,1.75282361]
[1729456161849,0.1772639,68636.0,68635.0,1.75282361]
[1729456163189,0.1772639,68636.0,68635.0,1.68762582]
[1729456163421,0.1772639,68636.0,68635.0,1.65498672]
[1729456163666,0.1772639,68636.0,68635.0,1.68762961]
[1729456163872,0.1772639,68636.0,68635.0,1.54193161]
[1729456164341,0.1772639,68636.0,68635.0,1.628862]
[1729456164558,0.1772639,68636.0,68635.0,1.77456]
[1729456164794,0.0037639,68636.0,68635.0,1.77456]
[1729456165029,0.0037639,68636.0,68635.0,1.77956]
[1729456165231,0.0037639,68636.0,68635.0,1.69262961]
[1729456165491,0.0037639,68636.0,68635.0,1.77964411]
[1729456165722,0.0037639,68636.0,68635.0,1.69262961]
[1729456166457,0.0037639,68636.0,68635.0,1.80111511]
[1729456167152,0.0037639,68636.0,68635.0,1.80112251]
[1729456167386,0.0037639,68636.0,68635.0,1.69263701]
[1729456167620,0.0037639,68636.0,68635.0,1.80143323]
[1729456168495,0.0037639,68636.0,68635.0,1.69263701]
[1729456169207,0.0037639,68636.0,68635.0,1.80144188]
[1729456169670,0.0037639,68636.0,68635.0,1.69263701]
[1729456169903,0.0037639,68636.0,68635.0,1.80144188]
[1729456170748,0.0037639,68636.0,68635.0,1.76879159]
[1729456170968,0.0037639,68636.0,68635.0,1.79056419]
[1729456171182,0.0037639,68636.0,68635.0,1.80145049]
[1729456171862,0.0037639,68636.0,68635.0,1.69264562]
[1729456172308,0.0037639,68636.0,68635.0,1.86817357]
[1729456172532,0.0037639,68636.0,68635.0,1.73799097]
[1729456173013,0.0045909,68636.0,68635.0,1.73799097]
[1729456173254,0.0045909,68636.0,68635.0,1.86854127]
[1729456173959,0.0045909,68636.0,68635.0,1.73799097]
[1729456174439,0.0045909,68636.0,68635.0,1.69264562]
[1729456176955,0.0045909,68636.0,68635.0,1.94280477]
[1729456177190,0.0045909,68636.0,68635.0,1.95164372]
[1729456177416,0.0045909,68636.0,68635.0,2.12753772]
[1729456177909,0.0045909,68636.0,68635.0,2.08603987]
[1729456178131,0.0045909,68636.0,68635.0,2.09485994]
[1729456178351,0.0045909,68636.0,68635.0,1.99695775]
[1729456178575,0.0045909,68636.0,68635.0,2.12749062]
[1729456178803,0.0045909,68636.0,68635.0,2.10315775]
[1729456179037,0.001652,68644.0,68643.0,0.154509]
[1729456179223,0.001652,68644.0,68643.0,1.83145152]
[1729456181565,0.001652,68644.0,68643.0,2.03685152]
[1729456181810,0.001652,68644.0,68643.0,2.03885152]
[1729456182251,0.00165,68656.0,68655.0,0.181228]
[1729456182471,0.22011622,68656.0,68655.0,1.94901752]
[1729456182706,0.00165,68656.0,68655.0,2.04326867]
[1729456183179,0.00165,68656.0,68655.0,1.96206867]
[1729456183415,0.00165,68656.0,68655.0,1.87086867]
[1729456183649,0.00165,68656.0,68655.0,1.97948731]
[1729456184789,0.00165,68656.0,68655.0,1.95773323]
[1729456184985,0.00165,68656.0,68655.0,1.94889582]
[1729456185240,0.00165,68656.0,68655.0,1.95763357]
[1729456185666,0.00165,68656.0,68655.0,1.87076832]
[1729456187464,0.00165,68656.0,68655.0,1.88522863]
[1729456187673,0.00165,68656.0,68655.0,1.92862576]
[1729456187901,0.00165,68656.0,68655.0,1.92861937]
[1729456188611,0.00165,68656.0,68655.0,1.88522224]
[1729456188841,0.00165,68656.0,68655.0,1.88522095]
[1729456190372,0.00165,68656.0,68655.0,1.87076064]
[1729456193270,0.00165,68656.0,68655.0,1.87071928]
[1729456195105,0.00165,68656.0,68655.0,1.88517158]
[1729456195330,0.00165,68656.0,68655.0,1.87071928]
[1729456195572,0.00165,68656.0,68655.0,1.87271928]
[1729456196509,0.00165,68656.0,68655.0,1.88717158]
[1729456198737,0.00165,68656.0,68655.0,1.87271928]
[1729456199188,0.00165,68656.0,68655.0,1.8871751]
[1729456199405,0.00165,68656.0,68655.0,1.79092395]
[1729456199652,0.00165,68656.0,68655.0,1.77646813]
[1729456200511,0.00165,68656.0,68655.0,1.63081313]
[1729456201665,0.00165,68656.0,68655.0,1.48185398]
[1729456201887,0.00165,68656.0,68655.0,1.48185911]
[1729456202595,0.00165,68656.0,68655.0,1.49632411]
[1729456204436,0.00165,68656.0,68655.0,1.48185911]
[1729456204928,0.00165,68656.0,68655.0,1.63081826]
[1729456207387,0.00165,68656.0,68655.0,1.48185911]
[1729456208911,0.00165,68656.0,68655.0,1.44933896]
[1729456209122,0.00165,68656.0,68655.0,1.4819387]
[1729456210981,0.00165,68656.0,68655.0,1.6275937]
[1729456211210,0.00165,68656.0,68655.0,1.4819387]
[1729456212151,0.00165,68656.0,68655.0,1.6275937]
[1729456212441,0.00165,68656.0,68655.0,1.61878274]
[1729456212661,0.00165,68656.0,68655.0,1.59502172]
[1729456212898,0.00165,68656.0,68655.0,1.62766608]
[1729456213135,0.00165,68656.0,68655.0,1.77662523]
[1729456213378,0.00165,68656.0,68655.0,1.92662523]
[1729456215749,0.00165,68656.0,68655.0,1.9266262]
[1729456216221,0.00165,68656.0,68655.0,1.91778725]
[1729456216452,0.00165,68656.0,68655.0,1.89398106]
[1729456216691,0.00165,68656.0,68655.0,1.9266261]
[1729456216927,0.00165,68656.0,68655.0,1.97002252]
[1729456218509,0.00165,68656.0,68655.0,1.99172074]
[1729456219730,0.00165,68656.0,68655.0,1.9266261]
[1729456220181,0.00165,68656.0,68655.0,1.91778719]
[1729456220424,0.00165,68656.0,68655.0,1.92662513]
[1729456220666,0.00165,68656.0,68655.0,1.99171977]
[1729456220906,0.00165,68656.0,68655.0,1.90690551]
[1729456221137,0.00165,68656.0,68655.0,1.92662228]
[1729456221616,0.00165,68656.0,68655.0,2.01341513]
[1729456221857,0.00165,68656.0,68655.0,1.971935]
[1729456222086,0.00165,68656.0,68655.0,1.98077291]
[1729456222316,0.00165,68656.0,68655.0,1.89398006]
[1729456222817,0.00165,68656.0,68655.0,1.98077291]
[1729456223529,0.00165,68656.0,68655.0,1.98281598]
[1729456223761,0.00165,68656.0,68655.0,2.00451419]
[1729456224236,0.00165,68656.0,68655.0,1.75036813]
[1729456225207,0.372681,68663.0,68655.0,1.75036813]
[1729456225208,0.319976,68663.0,68659.0,0.005]
[1729456225445,0.145644,68661.0,68660.0,1.44640898]
[1729456225684,0.145644,68661.0,68660.0,1.48989959]
[1729456225922,0.145644,68661.0,68660.0,1.44640898]
[1729456226159,0.319976,68663.0,68660.0,1.44640898]
[1729456226376,0.145642,68662.0,68660.0,1.48991137]
[1729456226602,0.145642,68662.0,68661.0,0.058536]
[1729456226864,0.145642,68662.0,68661.0,1.50101834]
[1729456227322,0.15484234,68662.0,68661.0,1.50101834]
[1729456228261,0.15484234,68662.0,68661.0,1.44631034]
[1729456229661,0.15484234,68662.0,68661.0,1.45514982]
[1729456230774,0.15484234,68662.0,68661.0,1.49867454]
[1729456231422,0.15484234,68662.0,68661.0,1.45514982]
[1729456232346,0.15567034,68662.0,68661.0,1.45514982]
[1729456232807,0.15567034,68662.0,68661.0,1.49867587]
[1729456233024,0.15567034,68662.0,68661.0,1.45514982]
[1729456233709,0.15567034,68662.0,68661.0,1.60410897]
[1729456233944,0.15567034,68662.0,68661.0,1.63675294]
[1729456234407,0.15567034,68662.0,68661.0,1.593227]
[1729456234630,0.15567034,68662.0,68661.0,1.44426785]
[1729456234871,0.15567034,68662.0,68661.0,1.48779448]
[1729456235114,0.15567034,68662.0,68661.0,1.50952144]
[1729456235804,0.15567034,68662.0,68661.0,1.50955748]
[1729456236498,0.15567034,68662.0,68661.0,1.44426785]
[1729456236726,0.01002834,68662.0,68661.0,1.593227]
[1729456236948,0.15566834,68662.0,68661.0,1.68027985]
[1729456237164,0.146468,68662.0,68661.0,1.68027985]
[1729456237379,0.15566641,68662.0,68661.0,1.58438715]
[1729456237596,0.15566641,68662.0,68661.0,1.68027937]
[1729456238091,0.15566641,68662.0,68661.0,1.53132022]
[1729456238319,0.00566641,68662.0,68661.0,1.44426737]
[1729456238535,0.00908172,68662.0,68661.0,1.44426737]
[1729456238741,0.145638,68663.0,68661.0,1.44426737]
[1729456238953,0.145638,68663.0,68662.0,0.056194]
[1729456239171,0.145638,68663.0,68662.0,1.487794]
[1729456240702,0.0993,68664.0,68662.0,1.487794]
[1729456240970,0.244936,68664.0,68663.0,0.01266737]
[1729456241193,0.244936,68664.0,68663.0,1.44426735]
[1729456241387,0.244936,68664.0,68663.0,1.51792807]
[1729456242762,0.244936,68664.0,68663.0,1.44426735]
[1729456244143,0.245764,68664.0,68663.0,1.44426735]
[1729456244610,0.245764,68664.0,68663.0,1.4442671]
[1729456246028,0.2548457,68664.0,68663.0,1.4442671]
[1729456248059,0.2548457,68664.0,68663.0,1.44426703]
[1729456249629,0.2548457,68664.0,68663.0,1.487801]
[1729456250776,0.2548457,68664.0,68663.0,1.47896197]
[1729456252606,0.2548457,68664.0,68663.0,1.48780143]
[1729456257598,0.1092097,68664.0,68663.0,1.48780143]
[1729456257837,0.1555457,68664.0,68663.0,1.63676058]
[1729456258052,0.1555457,68664.0,68663.0,1.4878009]
[1729456259238,0.0099097,68664.0,68663.0,1.44426746]
[1729456259473,0.0099097,68664.0,68663.0,1.50955755]
[1729456259474,0.1555457,68664.0,68663.0,1.50955755]
[1729456259933,0.1555457,68664.0,68663.0,1.44426746]
[1729456260158,0.1555457,68664.0,68663.0,1.48779998]
[1729456261275,0.1555457,68664.0,68663.0,1.48779852]
[1729456264487,0.1555457,68664.0,68663.0,1.47896052]
[1729456264722,0.0099097,68664.0,68663.0,1.59322498]
[1729456265432,0.0099097,68664.0,68663.0,1.65851507]
[1729456265659,0.0099097,68664.0,68663.0,1.65852018]
[1729456265888,0.1555457,68664.0,68663.0,1.65852018]
[1729456267511,0.0099097,68664.0,68663.0,1.65852018]
[1729456267725,0.0099097,68664.0,68663.0,1.65851577]
[1729456268165,0.0099097,68664.0,68663.0,1.65851453]
[1729456268376,0.0099097,68664.0,68663.0,1.64967794]
[1729456268589,0.0099097,68664.0,68663.0,1.65851453]
[1729456269680,0.1555457,68664.0,68663.0,1.50955538]
[1729456271643,0.1555457,68664.0,68663.0,1.50071879]
[1729456272090,0.1555457,68664.0,68663.0,1.50955463]
[1729456272306,0.1555457,68664.0,68663.0,1.509553]
[1729456272738,0.0099097,68664.0,68663.0,1.509553]
[1729456272949,0.0099097,68664.0,68663.0,1.91736099]
[1729456273186,0.000828,68664.0,68663.0,2.02617625]
[1729456273373,0.000828,68664.0,68663.0,1.91736099]
[1729456273617,0.000828,68664.0,68663.0,2.02613483]
[1729456274503,0.000828,68664.0,68663.0,1.91736099]
[1729456274717,0.000828,68664.0,68663.0,2.02611894]
[1729456276632,0.000828,68664.0,68663.0,1.91736099]
[1729456278830,0.000828,68664.0,68663.0,1.90852515]
[1729456279052,0.000828,68664.0,68663.0,1.91735108]
[1729456280626,0.000828,68664.0,68663.0,2.00431766]
[1729456282349,0.000828,68664.0,68663.0,1.91735108]
[1729456282775,0.000828,68664.0,68663.0,1.91734956]
[1729456283445,0.000828,68664.0,68663.0,1.90852515]
[1729456283659,0.000828,68664.0,68663.0,1.91734922]
[1729456285682,0.000828,68664.0,68663.0,2.00429328]
[1729456285897,0.145622,68671.0,68663.0,2.00429328]
[1729456285898,0.09537,68672.0,68666.0,0.005]
[1729456286128,0.145624,68670.0,68666.0,0.005]
[1729456286337,0.00908242,68671.0,68669.0,0.003828]
[1729456286554,0.291234,68674.0,68670.0,1.44042354]
[1729456286787,0.291235,68673.0,68671.0,0.00882354]
[1729456287010,0.291235,68673.0,68672.0,1.4316]
[1729456287204,0.436852,68673.0,68672.0,1.44042262]
[1729456287665,0.145617,68673.0,68672.0,1.44042262]
[1729456287889,0.291226,68675.0,68672.0,1.44042262]
[1729456287890,0.1,68674.0,68672.0,1.44042262]
[1729456288171,0.15469928,68673.0,68672.0,1.4316]
[1729456288397,0.15469928,68673.0,68672.0,1.44042272]
[1729456289083,0.0090828,68673.0,68672.0,1.44042272]
[1729456289296,0.1546998,68673.0,68672.0,1.58484779]
[1729456289538,0.145617,68673.0,68672.0,1.58484779]
[1729456289771,0.15439732,68673.0,68672.0,1.58484796]
[1729456290682,0.00878032,68673.0,68672.0,1.58484796]
[1729456291167,0.236842,68675.0,68672.0,1.58484796]
[1729456291401,0.00877901,68673.0,68672.0,1.4316]
[1729456291638,0.145616,68674.0,68672.0,1.44042292]
[1729456291866,0.00960727,68673.0,68672.0,1.4316]
[1729456292100,0.00960727,68673.0,68672.0,1.44042292]
[1729456292813,0.00960727,68673.0,68672.0,1.58484801]
[1729456293969,0.00960727,68673.0,68672.0,1.60223835]
[1729456294408,0.00960727,68673.0,68672.0,1.61310731]
[1729456294843,0.00960727,68673.0,68672.0,1.46868222]
[1729456295096,0.15522427,68673.0,68672.0,1.46868222]
[1729456295835,0.00960727,68673.0,68672.0,1.46868222]
[1729456296737,0.00960727,68673.0,68672.0,1.46869017]
[1729456297193,0.00960727,68673.0,68672.0,1.45781922]
[1729456297420,0.00877955,68673.0,68672.0,1.59746136]
[1729456297866,0.145615,68674.0,68672.0,1.61485489]
[1729456298092,0.00848691,68673.0,68672.0,1.57776472]
[1729456298284,0.00848691,68673.0,68672.0,1.5865899]
[1729456298775,0.145613,68675.0,68672.0,1.5865899]
[1729456298993,0.00848691,68673.0,68672.0,1.4316]
[1729456299199,0.145613,68675.0,68672.0,1.44042576]
[1729456299429,0.145613,68675.0,68673.0,0.00882576]
[1729456299679,0.145613,68675.0,68674.0,0.00882576]
[1729456299900,0.145613,68675.0,68674.0,1.58485114]
[1729456300115,0.145614,68675.0,68674.0,1.58485114]
[1729456301461,0.336836,68676.0,68674.0,1.44042576]
[1729456301694,0.436833,68676.0,68675.0,0.00882576]
[1729456301917,0.436833,68676.0,68675.0,1.44042576]
[1729456303517,0.146611,68676.0,68675.0,1.44042576]
[1729456303755,0.001,68676.0,68675.0,1.44043144]
[1729456303939,0.146611,68676.0,68675.0,1.44043144]
[1729456304188,0.42295639,68676.0,68675.0,1.44043144]
[1729456304403,0.37657015,68676.0,68675.0,1.4316]
[1729456304638,0.37657015,68676.0,68675.0,1.57619134]
[1729456305102,0.37657015,68676.0,68675.0,1.58502159]
[1729456305103,0.00948717,68676.0,68675.0,1.58502159]
[1729456305539,0.001,68676.0,68675.0,1.58502159]
[1729456305751,0.1,68680.0,68675.0,1.58502159]
[1729456305940,0.1,68680.0,68676.0,0.08685878]
[1729456306183,0.291193,68683.0,68677.0,1.44033025]
[1729456306396,0.00848641,68679.0,68678.0,0.00883025]
[1729456306626,0.145601,68681.0,68678.0,0.00883025]
[1729456306837,0.145601,68681.0,68679.0,0.00883025]
[1729456307057,0.145601,68681.0,68680.0,0.14459134]
[1729456307505,0.25044664,68683.0,68680.0,0.14459134]
[1729456307732,0.145601,68681.0,68680.0,0.14459134]
[1729456308353,0.252601,68681.0,68680.0,0.14559134]
[1729456309066,0.052601,68681.0,68680.0,0.14559134]
[1729456309292,0.152601,68681.0,68680.0,0.14559134]
[1729456309512,0.152601,68681.0,68680.0,0.15442012]
[1729456309703,0.152601,68681.0,68680.0,0.25442012]
[1729456309982,0.152601,68681.0,68680.0,0.24559134]
[1729456310205,0.086,68684.0,68680.0,0.24559134]
[1729456310434,0.086,68684.0,68680.0,0.101]
[1729456310435,0.145601,68681.0,68680.0,0.101]
[1729456311072,0.145601,68681.0,68680.0,0.1]
[1729456311295,0.045601,68681.0,68680.0,0.1]
[1729456311534,0.145601,68681.0,68680.0,0.1]
[1729456312163,0.145601,68681.0,68680.0,0.101]
[1729456312420,0.236798,68682.0,68680.0,0.101]
[1729456312645,0.145601,68681.0,68680.0,0.1]
[1729456313093,0.157601,68681.0,68680.0,0.102]
[1729456313313,0.251601,68681.0,68680.0,0.101]
[1729456313532,0.251601,68681.0,68680.0,0.1]
[1729456313533,0.245601,68681.0,68680.0,0.1]
[1729456313759,0.242798,68682.0,68680.0,0.101]
[1729456313974,0.145601,68681.0,68680.0,0.1]
[1729456314186,0.151601,68681.0,68680.0,0.101]
[1729456314705,0.043601,68684.0,68680.0,0.101]
[1729456314937,0.145597,68683.0,68680.0,0.101]
[1729456315354,0.006,68681.0,68680.0,0.102]
[1729456315597,0.006,68681.0,68680.0,0.103654]
[1729456315828,0.1,68682.0,68680.0,0.102654]
[1729456316047,0.145597,68683.0,68680.0,0.102654]
[1729456316048,0.000827,68683.0,68680.0,0.101654]
[1729456316279,0.006827,68683.0,68680.0,0.102654]
[1729456316496,0.23005715,68685.0,68680.0,0.102654]
[1729456316754,0.005,68681.0,68680.0,0.101654]
[1729456316986,0.006,68681.0,68680.0,0.102654]
[1729456317173,0.145595,68684.0,68680.0,0.102654]
[1729456317408,0.005,68683.0,68680.0,0.102654]
[1729456317689,0.145593,68685.0,68680.0,0.102654]
[1729456317919,0.005,68681.0,68680.0,0.102654]
[1729456318140,0.03921308,68684.0,68680.0,0.102654]
[1729456318360,0.03072567,68684.0,68680.0,0.102654]
[1729456318585,0.00848741,68683.0,68680.0,0.101654]
[1729456318770,0.00848741,68683.0,68680.0,0.25061315]
[1729456319014,0.02275976,68684.0,68680.0,0.25061315]
[1729456319239,0.00848741,68682.0,68680.0,0.25061315]
[1729456319453,0.02275976,68684.0,68680.0,0.25061315]
[1729456319679,0.00848741,68681.0,68680.0,0.25061315]
[1729456319887,0.004,68683.0,68680.0,0.25061315]
[1729456320335,0.00848741,68682.0,68680.0,0.25061315]
[1729456320775,0.003,68682.0,68680.0,0.25061315]
[1729456321000,0.00848741,68681.0,68680.0,0.25061315]
[1729456321467,0.003,68682.0,68680.0,0.25061315]
[1729456321682,0.003,68682.0,68680.0,0.101654]
[1729456321902,0.00848741,68681.0,68680.0,0.101654]
[1729456322348,0.02275976,68684.0,68680.0,0.101654]
[1729456322791,0.00848703,68683.0,68680.0,0.101654]
[1729456330701,0.0521631,68683.0,68680.0,0.101654]
[1729456331602,0.00848703,68683.0,68680.0,0.101654]
[1729456332052,0.0521631,68683.0,68680.0,0.101654]
[1729456332285,0.00848703,68683.0,68680.0,0.101654]
[1729456332723,0.05218251,68683.0,68680.0,0.101654]
[1729456333014,0.00848703,68683.0,68680.0,0.101654]
[1729456336337,0.00848703,68683.0,68681.0,1.44033241]
[1729456336552,0.00848703,68683.0,68681.0,1.4315]
[1729456337652,0.01148703,68683.0,68681.0,1.4315]
[1729456337893,0.01148703,68683.0,68681.0,1.58045915]
[1729456340053,0.01148703,68683.0,68681.0,1.4315]
[1729456340744,0.00848703,68683.0,68681.0,1.4315]
[1729456341358,0.01048703,68683.0,68681.0,1.4315]
[1729456343065,0.05418251,68683.0,68681.0,1.4315]
[1729456343500,0.01048703,68683.0,68681.0,1.4315]
[1729456344609,0.01048703,68683.0,68682.0,0.00883343]
[1729456346444,0.00848703,68683.0,68681.0,1.4315]
[1729456346833,0.01148703,68683.0,68681.0,1.4315]
[1729456347243,0.01148703,68683.0,68682.0,0.00883353]
[1729456347454,0.00848703,68683.0,68682.0,0.00883353]
[1729456347672,0.00848703,68683.0,68682.0,1.44033353]
[1729456347891,0.01048703,68683.0,68682.0,1.44033353]
[1729456348373,0.00848703,68683.0,68682.0,1.44033353]
[1729456348576,0.00848703,68683.0,68682.0,1.44033359]
[1729456348805,0.00848703,68683.0,68682.0,1.4315]
[1729456349693,0.01148703,68683.0,68682.0,1.44033367]
[1729456350557,0.01148703,68683.0,68682.0,1.4315]
[1729456351002,0.05518251,68683.0,68682.0,1.4315]
[1729456351633,0.01148703,68683.0,68682.0,1.4315]
[1729456352050,0.05518251,68683.0,68682.0,1.4315]
[1729456353692,0.15518251,68683.0,68682.0,1.4315]
[1729456353792,0.11148703,68683.0,68682.0,1.4315]
[1729456354227,0.15518251,68683.0,68682.0,1.4315]
[1729456355520,0.11148703,68683.0,68682.0,1.4315]
[1729456355981,0.15518251,68683.0,68682.0,1.4315]
[1729456357530,0.44973766,68683.0,68682.0,1.4315]
[1729456358439,0.44973766,68683.0,68682.0,1.4423846]
[1729456358898,0.40604218,68683.0,68682.0,1.4423846]
[1729456359122,0.40604218,68683.0,68682.0,1.44238428]
[1729456360907,0.44973766,68683.0,68682.0,1.44238428]